fUST/lending_fUST_20240906
["ID","MTS","AMOUNT","RATE_DAILY","PERIOD"]
[337390117,1725637131361,-500.0,0.00019178,2]
[337390118,1725637131386,-500.0,0.00019178,2]
[337390119,1725637131409,-500.0,0.00019178,2]
[337390120,1725637131432,-500.0,0.00019178,2]
[337390121,1725637131456,-621.29,0.00019178,2]
[337390122,1725637131481,-500.0,0.00019178,2]
[337390123,1725637131508,-1027.81,0.00019178,2]
[337390124,1725637131532,-527.84,0.00019178,2]
[337390125,1725637131555,-651.73,0.00019178,2]
[337390126,1725637131579,-500.0,0.00019178,2]
[337390127,1725637131602,-1763.06,0.00019178,2]
[337390128,1725637131628,-887.46,0.00019178,2]
[337390129,1725637131652,-500.0,0.00019178,2]
[337390130,1725637131677,-1024.82,0.00019178,2]
[337390131,1725637131867,-500.0,0.00019178,2]
[337390132,1725637131892,-503.36,0.00019178,2]
[337390133,1725637131917,-500.0,0.00019178,2]
[337390134,1725637131942,-590.03,0.00019178,2]
[337390135,1725637131967,-708.38,0.00019178,2]
[337390136,1725637131993,-500.0,0.00019178,2]
[337390137,1725637132021,-500.0,0.00019178,2]
[337390138,1725637132046,-500.0,0.00019178,2]
[337390139,1725637132072,-2392.21,0.00019178,2]
[337390140,1725637132096,-500.0,0.00019178,2]
[337390141,1725637132120,-500.0,0.00019178,2]
[337390142,1725637132148,-500.0,0.00019178,2]
[337390143,1725637132173,-500.0,0.00019178,2]
[337390144,1725637132200,-597.14,0.00019178,2]
[337390145,1725637132227,-246.56051231,0.00019178,2]
[337390146,1725637132251,-500.0,0.00019178,2]
[337390147,1725637132274,-500.0,0.00019178,2]
[337390148,1725637132297,-529.29,0.00019178,2]
[337390149,1725637132323,-1398.54,0.00019178,2]
[337390150,1725637132347,-709.35,0.00019178,2]
[337390151,1725637132369,-500.0,0.00019178,2]
[337390152,1725637132395,-1771.65,0.00019178,2]
[337390153,1725637132420,-500.0,0.00019178,2]
[337390154,1725637132448,-500.0,0.00019178,2]
[337390155,1725637132474,-1886.71,0.00019178,2]
[337390156,1725637132498,-500.0,0.00019178,2]
[337390157,1725637132524,-1497.7,0.00019178,2]
[337390158,1725637132549,-500.0,0.00019178,2]
[337390159,1725637132573,-500.0,0.00019178,2]
[337390160,1725637132597,-500.0,0.00019178,2]
[337390161,1725637132621,-500.0,0.00019178,2]
[337390162,1725637132649,-6237.69,0.00019178,2]
[337390163,1725637132674,-51565.56,0.00019178,2]
[337390164,1725637132700,-1073.24,0.00019178,2]
[337390165,1725637132724,-500.0,0.00019178,2]
[337390166,1725637132750,-500.0,0.00019178,2]
[337390167,1725637132775,-500.0,0.00019178,2]
[337390168,1725637132800,-1705.58,0.00019178,2]
[337390169,1725637132824,-907.97,0.00019178,2]
[337390170,1725637132850,-500.0,0.00019178,2]
[337390171,1725637132874,-500.0,0.00019178,2]
[337390172,1725637132906,-500.0,0.00019178,2]
[337390173,1725637132929,-500.0,0.00019178,2]
[337390174,1725637132953,-500.0,0.00019178,2]
[337390175,1725637132977,-990.33,0.00019178,2]
[337390176,1725637133000,-1508.74,0.00019178,2]
[337390177,1725637133024,-500.0,0.00019178,2]
[337390178,1725637133048,-634.76029526,0.00019178,2]
[337390179,1725637133071,-500.0,0.00019178,2]
[337390180,1725637133094,-500.0,0.00019178,2]
[337390181,1725637133118,-500.0,0.00019178,2]
[337390182,1725637133145,-500.0,0.00019178,2]
[337390183,1725637133169,-500.0,0.00019178,2]
[337390184,1725637133193,-1638.19,0.00019178,2]
[337390185,1725637133221,-500.38817659,0.00019178,2]
[337390186,1725637133245,-500.0,0.00019178,2]
[337390187,1725637133270,-500.0,0.00019178,2]
[337390188,1725637133298,-500.0,0.00019178,2]
[337390189,1725637133322,-500.0,0.00019178,2]
[337390190,1725637133347,-749.89,0.00019178,2]
[337390191,1725637133376,-500.0,0.00019178,2]
[337390192,1725637133403,-500.0,0.00019178,2]
[337390193,1725637133426,-500.0,0.00019178,2]
[337390194,1725637133451,-500.0,0.00019178,2]
[337390195,1725637133475,-500.0,0.00019178,2]
[337390196,1725637133498,-500.0,0.00019178,2]
[337390197,1725637133523,-1588.35,0.00019178,2]
[337390198,1725637133547,-814.51,0.00019178,2]
[337390199,1725637133570,-680.85,0.00019178,2]
[337390200,1725637133595,-39993.96,0.00019178,2]
[337390201,1725637133619,-500.0,0.00019178,2]
[337390202,1725637133649,-1220.83,0.00019178,2]
[337390203,1725637133673,-500.0,0.00019178,2]
[337390204,1725637133698,-500.0,0.00019178,2]
[337390205,1725637133724,-500.0,0.00019178,2]
[337390206,1725637133753,-207.40445214,0.00019207,2]
[337390207,1725637133779,-207.40445214,0.00019347,2]
[337390208,1725637133807,-500.0,0.00019452,2]
[337390209,1725637133831,-500.0,0.00019452,2]
[337390210,1725637133855,-500.0,0.00019452,2]
[337390211,1725637133882,-606.16,0.00019452,2]
[337390212,1725637133906,-500.0,0.00019452,2]
[337390213,1725637133930,-500.0,0.00019452,2]
[337390214,1725637133956,-500.0,0.00019452,2]
[337390215,1725637133980,-500.0,0.00019452,2]
[337390216,1725637134004,-500.0,0.00019452,2]
[337390217,1725637134033,-822.77,0.00019452,2]
[337390218,1725637134057,-500.0,0.00019452,2]
[337390219,1725637134081,-945.5,0.00019452,2]
[337390220,1725637134106,-1199.51,0.00019452,2]
[337390221,1725637134134,-500.0,0.00019452,2]
[337390222,1725637134158,-500.0,0.00019452,2]
[337390223,1725637134183,-592.24335349,0.00019452,2]
[337390224,1725637134209,-500.0,0.00019452,2]
[337390225,1725637134235,-500.0,0.00019452,2]
[337390226,1725637134274,-500.0,0.00019452,2]
[337390227,1725637134307,-500.0,0.00019452,2]
[337390228,1725637134336,-500.0,0.00019452,2]
[337390229,1725637134366,-500.0,0.00019452,2]
[337390230,1725637134397,-500.0,0.00019452,2]
[337390231,1725637134427,-500.0,0.00019452,2]
[337390232,1725637134457,-500.0,0.00019452,2]
[337390233,1725637134490,-500.0,0.00019452,2]
[337390234,1725637134521,-1148.45,0.00019452,2]
[337390235,1725637134551,-500.0,0.00019452,2]
[337390236,1725637134582,-500.0,0.00019452,2]
[337390237,1725637134615,-500.0,0.00019452,2]
[337390238,1725637134650,-500.0,0.00019452,2]
[337390239,1725637134677,-500.0,0.00019452,2]
[337390240,1725637134711,-1115.09,0.00019452,2]
[337390241,1725637134742,-500.0,0.00019452,2]
[337390242,1725637134774,-500.0,0.00019452,2]
[337390243,1725637134805,-500.0,0.00019452,2]
[337390244,1725637134838,-500.0,0.00019452,2]
[337390245,1725637134871,-500.0,0.00019452,2]
[337390246,1725637134907,-500.0,0.00019452,2]
[337390247,1725637134936,-819.23,0.00019452,2]
[337390248,1725637134966,-500.0,0.00019452,2]
[337390249,1725637134997,-543.9,0.00019452,2]
[337390250,1725637135028,-500.0,0.00019452,2]
[337390251,1725637135058,-500.0,0.00019452,2]
[337390252,1725637135088,-500.0,0.00019452,2]
[337390253,1725637135121,-500.0,0.00019452,2]
[337390254,1725637135152,-500.0,0.00019452,2]
[337390255,1725637135179,-500.0,0.00019452,2]
[337390256,1725637135210,-500.0,0.00019452,2]
[337390257,1725637135241,-1344.78,0.00019452,2]
[337390258,1725637135271,-339.2,0.00019452,2]
[337390259,1725637135305,-500.0,0.00019452,2]
[337390260,1725637135339,-598.52,0.00019452,2]
[337390261,1725637135371,-500.0,0.00019452,2]
[337390262,1725637135402,-500.0,0.00019452,2]
[337390263,1725637135430,-500.0,0.00019452,2]
[337390264,1725637135460,-974.11,0.00019452,2]
[337390265,1725637135488,-500.0,0.00019452,2]
[337390266,1725637135516,-500.0,0.00019452,2]
[337390267,1725637135543,-506.40771006,0.00019452,2]
[337390268,1725637135571,-590.0,0.00019452,2]
[337390269,1725637135603,-500.0,0.00019452,2]
[337390270,1725637135635,-500.0,0.00019452,2]
[337390271,1725637135663,-500.0,0.00019452,2]
[337390272,1725637135701,-500.0,0.00019452,2]
[337390273,1725637135744,-789.17,0.00019452,2]
[337390274,1725637135780,-1665.05,0.00019452,2]
[337390275,1725637135816,-500.0,0.00019452,2]
[337390276,1725637135849,-500.0,0.00019452,2]
[337390277,1725637135881,-500.0,0.00019452,2]
[337390278,1725637135919,-500.0,0.00019452,2]
[337390279,1725637135950,-500.0,0.00019452,2]
[337390280,1725637135983,-500.0,0.00019452,2]
[337390281,1725637136015,-500.0,0.00019452,2]
[337390282,1725637136046,-521.92100964,0.00019452,2]
[337390283,1725637136078,-500.0,0.00019452,2]
[337390284,1725637136109,-500.0,0.00019452,2]
[337390285,1725637136147,-500.0,0.00019452,2]
[337390286,1725637136178,-500.0,0.00019452,2]
[337390287,1725637136207,-1000.15,0.00019452,2]
[337390288,1725637136235,-500.0,0.00019452,2]
[337390289,1725637136262,-500.0,0.00019452,2]
[337390290,1725637136289,-500.0,0.00019452,2]
[337390291,1725637136318,-650.96,0.00019452,2]
[337390292,1725637136347,-500.0,0.00019452,2]
[337390293,1725637136383,-500.0,0.00019452,2]
[337390294,1725637136412,-500.0,0.00019452,2]
[337390295,1725637136442,-1511.74,0.00019452,2]
[337390296,1725637136471,-500.0,0.00019452,2]
[337390297,1725637136500,-500.0,0.00019452,2]
[337390298,1725637136530,-658.64,0.00019452,2]
[337390299,1725637136559,-500.0,0.00019452,2]
[337390300,1725637136587,-500.0,0.00019452,2]
[337390301,1725637136616,-500.0,0.00019452,2]
[337390302,1725637136648,-500.0,0.00019452,2]
[337390303,1725637136677,-500.0,0.00019452,2]
[337390304,1725637136707,-573.62,0.00019452,2]
[337390305,1725637136735,-500.0,0.00019452,2]
[337390306,1725637136763,-500.0,0.00019452,2]
[337390307,1725637136791,-500.0,0.00019452,2]
[337390308,1725637136820,-500.0,0.00019452,2]
[337390309,1725637136848,-500.0,0.00019452,2]
[337390310,1725637136876,-500.0,0.00019452,2]
[337390311,1725637136905,-1501.9,0.00019452,2]
[337390312,1725637136932,-500.0,0.00019452,2]
[337390313,1725637136960,-500.0,0.00019452,2]
[337390314,1725637136988,-1054.4,0.00019452,2]
[337390315,1725637137014,-1065.07,0.00019452,2]
[337390316,1725637137041,-500.0,0.00019452,2]
[337390317,1725637137069,-500.0,0.00019452,2]
[337390318,1725637137400,-500.0,0.00019452,2]
[337390319,1725637137435,-500.0,0.00019452,2]
[337390320,1725637137457,-500.0,0.00019452,2]
[337390321,1725637137481,-500.0,0.00019452,2]
[337390322,1725637137504,-745.45,0.00019452,2]
[337390323,1725637137529,-791.87,0.00019452,2]
[337390324,1725637137554,-1110.03,0.00019452,2]
[337390325,1725637137578,-500.0,0.00019452,2]
[337390326,1725637137603,-500.0,0.00019452,2]
[337390327,1725637137629,-358.4850641,0.00019452,2]
[337390328,1725637137655,-894.41,0.00019452,2]
[337390329,1725637137681,-500.0,0.00019452,2]
[337390330,1725637137707,-500.0,0.00019452,2]
[337390331,1725637137733,-911.93,0.00019452,2]
[337390332,1725637137760,-668.19,0.00019452,2]
[337390333,1725637137785,-532.23021381,0.00019452,2]
[337390334,1725637137810,-979.54,0.00019452,2]
[337390335,1725637137834,-500.0,0.00019452,2]
[337390336,1725637137857,-500.0,0.00019452,2]
[337390337,1725637137881,-500.0,0.00019452,2]
[337390338,1725637137904,-956.18,0.00019452,2]
[337390339,1725637137929,-500.0,0.00019452,2]
[337390340,1725637137954,-500.0,0.00019452,2]
[337390341,1725637137979,-500.0,0.00019452,2]
[337390342,1725637138004,-500.0,0.00019452,2]
[337390343,1725637138029,-20123.32,0.00019452,2]
[337390344,1725637138054,-531.03,0.00019452,2]
[337390345,1725637138080,-1029.44,0.00019452,2]
[337390346,1725637138104,-500.0,0.00019452,2]
[337390347,1725637138134,-527.96019736,0.00019452,2]
[337390348,1725637138159,-873.02,0.00019452,2]
[337390349,1725637138183,-500.0,0.00019452,2]
[337390350,1725637138212,-1677.69,0.00019452,2]
[337390351,1725637138237,-500.0,0.00019452,2]
[337390352,1725637138262,-49982.75,0.00019452,2]
[337390353,1725637138286,-1686.36,0.00019452,2]
[337390354,1725637138310,-500.0,0.00019452,2]
[337390355,1725637138333,-551.1,0.00019452,2]
[337390356,1725637138358,-1794.93,0.00019452,2]
[337390357,1725637138385,-1225.23,0.00019452,2]
[337390358,1725637138408,-1114.86,0.00019452,2]
[337390359,1725637138433,-500.0,0.00019452,2]
[337390360,1725637138460,-500.0,0.00019452,2]
[337390361,1725637138486,-500.0,0.00019452,2]
[337390362,1725637138509,-500.0,0.00019452,2]
[337390363,1725637138535,-1436.9,0.00019452,2]
[337390364,1725637138560,-1006.68,0.00019452,2]
[337390365,1725637138586,-2270.59,0.00019452,2]
[337390366,1725637138614,-1333.99,0.00019452,2]
[337390367,1725637138642,-505.74064727,0.00019452,2]
[337390368,1725637138665,-997.25,0.00019452,2]
[337390369,1725637138691,-500.0,0.00019452,2]
[337390370,1725637138718,-1406.88,0.00019452,2]
[337390371,1725637138742,-500.0,0.00019452,2]
[337390372,1725637138766,-605.1,0.00019452,2]
[337390373,1725637138789,-500.0,0.00019452,2]
[337390374,1725637138813,-1503.33,0.00019452,2]
[337390375,1725637138837,-500.0,0.00019452,2]
[337390376,1725637138863,-1033.11,0.00019452,2]
[337390377,1725637138890,-2150.27,0.00019452,2]
[337390378,1725637138914,-525.23,0.00019452,2]
[337390379,1725637138940,-1945.45,0.00019452,2]
[337390380,1725637138964,-1874.8,0.00019452,2]
[337390381,1725637138988,-500.0,0.00019452,2]
[337390382,1725637139012,-3184.66,0.00019452,2]
[337390383,1725637139035,-1694.67,0.00019452,2]
[337390384,1725637139059,-787.42,0.00019452,2]
[337390385,1725637139083,-500.0,0.00019452,2]
[337390386,1725637139108,-826.3,0.00019452,2]
[337390387,1725637139138,-500.0,0.00019452,2]
[337390388,1725637139174,-793.09,0.00019452,2]
[337390389,1725637139198,-909.42,0.00019452,2]
[337390390,1725637139225,-1317.33,0.00019452,2]
[337390391,1725637139250,-1644.73,0.00019452,2]
[337390392,1725637139274,-500.0,0.00019452,2]
[337390393,1725637139298,-1358.61,0.00019452,2]
[337390394,1725637139322,-579.63,0.00019452,2]
[337390395,1725637139347,-500.0,0.00019452,2]
[337390396,1725637139371,-500.0,0.00019452,2]
[337390397,1725637139397,-500.0,0.00019452,2]
[337390398,1725637139420,-500.0,0.00019452,2]
[337390399,1725637139444,-500.0,0.00019452,2]
[337390400,1725637139467,-621.29,0.00019452,2]
[337390401,1725637139491,-500.0,0.00019452,2]
[337390402,1725637139515,-1027.81,0.00019452,2]
[337390403,1725637139539,-527.84,0.00019452,2]
[337390404,1725637139563,-651.73,0.00019452,2]
[337390405,1725637139587,-1763.06,0.00019452,2]
[337390406,1725637139610,-887.46,0.00019452,2]
[337390407,1725637139641,-500.0,0.00019452,2]
[337390408,1725637139667,-1024.82,0.00019452,2]
[337390409,1725637139692,-500.0,0.00019452,2]
[337390410,1725637139717,-503.36,0.00019452,2]
[337390411,1725637139748,-500.0,0.00019452,2]
[337390412,1725637139775,-590.03,0.00019452,2]
[337390413,1725637139800,-708.38,0.00019452,2]
[337390414,1725637139825,-500.0,0.00019452,2]
[337390415,1725637139850,-500.0,0.00019452,2]
[337390416,1725637139878,-2392.21,0.00019452,2]
[337390417,1725637139905,-500.0,0.00019452,2]
[337390418,1725637139930,-506.39191235,0.00019452,2]
[337390419,1725637139955,-500.0,0.00019452,2]
[337390420,1725637139979,-597.14,0.00019452,2]
[337390421,1725637140003,-500.0,0.00019452,2]
[337390422,1725637140032,-500.0,0.00019452,2]
[337390423,1725637140057,-529.29,0.00019452,2]
[337390424,1725637140082,-1398.54,0.00019452,2]
[337390425,1725637140107,-709.35,0.00019452,2]
[337390426,1725637140135,-1771.65,0.00019452,2]
[337390427,1725637140160,-500.0,0.00019452,2]
[337390428,1725637140186,-1886.71,0.00019452,2]
[337390429,1725637140213,-1497.7,0.00019452,2]
[337390430,1725637140239,-500.0,0.00019452,2]
[337390431,1725637140265,-500.0,0.00019452,2]
[337390432,1725637140430,-500.0,0.00019452,2]
[337390433,1725637140457,-6237.69,0.00019452,2]
[337390434,1725637140483,-51565.56,0.00019452,2]
[337390435,1725637140508,-1073.24,0.00019452,2]
[337390436,1725637140536,-500.0,0.00019452,2]
[337390437,1725637140563,-500.0,0.00019452,2]
[337390438,1725637140589,-1705.58,0.00019452,2]
[337390439,1725637140615,-907.97,0.00019452,2]
[337390440,1725637140644,-500.0,0.00019452,2]
[337390441,1725637140670,-500.0,0.00019452,2]
[337390442,1725637140695,-990.33,0.00019452,2]
[337390443,1725637140721,-1508.74,0.00019452,2]
[337390444,1725637140747,-500.0,0.00019452,2]
[337390445,1725637140772,-500.0,0.00019452,2]
[337390446,1725637140798,-500.0,0.00019452,2]
[337390447,1725637140824,-500.0,0.00019452,2]
[337390448,1725637140848,-391.66976509,0.00019452,2]
[337390449,1725637140873,-1638.19,0.00019452,2]
[337390450,1725637140900,-500.0,0.00019452,2]
[337390451,1725637140925,-500.0,0.00019452,2]
[337390452,1725637140949,-500.0,0.00019452,2]
[337390453,1725637140973,-500.0,0.00019452,2]
[337390454,1725637141000,-749.89,0.00019452,2]
[337390455,1725637141028,-500.0,0.00019452,2]
[337390456,1725637141054,-500.0,0.00019452,2]
[337390457,1725637141081,-500.0,0.00019452,2]
[337390458,1725637141105,-500.0,0.00019452,2]
[337390459,1725637141131,-1588.35,0.00019452,2]
[337390460,1725637141160,-814.51,0.00019452,2]
[337390461,1725637141186,-680.85,0.00019452,2]
[337390462,1725637141212,-39993.96,0.00019452,2]
[337390463,1725637141238,-1220.83,0.00019452,2]
[337390464,1725637141262,-500.0,0.00019452,2]
[337390465,1725637141286,-500.0,0.00019452,2]
[337390466,1725637141311,-500.0,0.00019473,2]
[337390467,1725637141335,-500.0,0.00019473,2]
[337390468,1725637141361,-207.40445214,0.00019486,2]
[337390469,1725637141387,-500.0,0.00019593,2]
[337390470,1725637141411,-207.40445214,0.00019626,2]
[337390471,1725637141436,-500.0,0.00019726,2]
[337390472,1725637141460,-500.0,0.00019726,2]
[337390473,1725637141485,-151.0,0.00019726,2]
[337390474,1725637141510,-151.0,0.00019726,2]
[337390475,1725637141535,-500.0,0.00019726,2]
[337390476,1725637141559,-500.0,0.00019726,2]
[337390477,1725637141583,-503.89,0.00019726,2]
[337390478,1725637141608,-500.0,0.00019726,2]
[337390479,1725637141634,-500.0,0.00019726,2]
[337390480,1725637141659,-822.77,0.00019726,2]
[337390481,1725637141685,-500.0,0.00019726,2]
[337390482,1725637141713,-945.5,0.00019726,2]
[337390483,1725637141738,-1199.51,0.00019726,2]
[337390484,1725637141764,-500.0,0.00019726,2]
[337390485,1725637141789,-626.33735278,0.00019726,2]
[337390486,1725637141814,-151.0,0.00019726,2]
[337390487,1725637141840,-500.0,0.00019726,2]
[337390488,1725637141865,-500.0,0.00019726,2]
[337390489,1725637141894,-500.0,0.00019726,2]
[337390490,1725637141919,-500.0,0.00019726,2]
[337390491,1725637141945,-500.0,0.00019726,2]
[337390492,1725637141970,-500.0,0.00019726,2]
[337390493,1725637141994,-500.0,0.00019726,2]
[337390494,1725637142019,-500.0,0.00019726,2]
[337390495,1725637142044,-1148.45,0.00019726,2]
[337390496,1725637142071,-500.0,0.00019726,2]
[337390497,1725637142096,-500.0,0.00019726,2]
[337390498,1725637142122,-500.0,0.00019726,2]
[337390499,1725637142155,-1115.09,0.00019726,2]
[337390500,1725637142186,-500.0,0.00019726,2]
[337390501,1725637142211,-500.0,0.00019726,2]
[337390502,1725637142235,-151.0,0.00019726,2]
[337390503,1725637142259,-500.0,0.00019726,2]
[337390504,1725637142285,-500.0,0.00019726,2]
[337390505,1725637142310,-819.23,0.00019726,2]
[337390506,1725637142339,-500.0,0.00019726,2]
[337390507,1725637142366,-151.0,0.00019726,2]
[337390508,1725637142394,-500.0,0.00019726,2]
[337390509,1725637142419,-500.0,0.00019726,2]
[337390510,1725637142442,-500.0,0.00019726,2]
[337390511,1725637142467,-500.0,0.00019726,2]
[337390512,1725637142492,-500.0,0.00019726,2]
[337390513,1725637142517,-500.0,0.00019726,2]
[337390514,1725637142543,-500.0,0.00019726,2]
[337390515,1725637142569,-1344.78,0.00019726,2]
[337390516,1725637142595,-500.0,0.00019726,2]
[337390517,1725637142620,-598.52,0.00019726,2]
[337390518,1725637142648,-500.0,0.00019726,2]
[337390519,1725637142707,-974.11,0.00019726,2]
[337390520,1725637142737,-500.0,0.00019726,2]
[337390521,1725637142763,-590.0,0.00019726,2]
[337390522,1725637142789,-500.0,0.00019726,2]
[337390523,1725637142814,-500.0,0.00019726,2]
[337390524,1725637142839,-500.0,0.00019726,2]
[337390525,1725637142864,-789.17,0.00019726,2]
[337390526,1725637142892,-1665.05,0.00019726,2]
[337390527,1725637142918,-500.0,0.00019726,2]
[337390528,1725637142944,-500.0,0.00019726,2]
[337390529,1725637142970,-500.0,0.00019726,2]
[337390530,1725637142994,-527.3136546,0.00019726,2]
[337390531,1725637143021,-500.0,0.00019726,2]
[337390532,1725637143048,-500.0,0.00019726,2]
[337390533,1725637143075,-500.0,0.00019726,2]
[337390534,1725637143101,-1000.15,0.00019726,2]
[337390535,1725637143130,-500.0,0.00019726,2]
[337390536,1725637143159,-500.0,0.00019726,2]
[337390537,1725637143187,-500.0,0.00019726,2]
[337390538,1725637143215,-650.96,0.00019726,2]
[337390539,1725637143242,-500.0,0.00019726,2]
[337390540,1725637143268,-500.0,0.00019726,2]
[337390541,1725637143294,-1511.74,0.00019726,2]
[337390542,1725637143320,-500.0,0.00019726,2]
[337390543,1725637143344,-168.43977207,0.00019726,2]
[337390544,1725637143369,-658.64,0.00019726,2]
[337390545,1725637143398,-500.0,0.00019726,2]
[337390546,1725637143423,-500.0,0.00019726,2]
[337390547,1725637143450,-500.0,0.00019726,2]
[337390548,1725637143476,-500.0,0.00019726,2]
[337390549,1725637143502,-573.62,0.00019726,2]
[337390550,1725637143528,-500.0,0.00019726,2]
[337390551,1725637143554,-500.0,0.00019726,2]
[337390552,1725637143580,-500.0,0.00019726,2]
[337390553,1725637143608,-500.0,0.00019726,2]
[337390554,1725637143636,-500.0,0.00019726,2]
[337390555,1725637143663,-500.0,0.00019726,2]
[337390556,1725637143691,-1501.9,0.00019726,2]
[337390557,1725637143719,-500.0,0.00019726,2]
[337390558,1725637143746,-500.0,0.00019726,2]
[337390559,1725637143773,-1054.4,0.00019726,2]
[337390560,1725637143800,-1065.07,0.00019726,2]
[337390561,1725637143828,-500.0,0.00019726,2]
[337390562,1725637143856,-500.0,0.00019726,2]
[337390563,1725637143882,-791.87,0.00019726,2]
[337390564,1725637143911,-745.45,0.00019726,2]
[337390565,1725637143937,-1110.03,0.00019726,2]
[337390566,1725637143963,-171.37192216,0.00019726,2]
[337390567,1725637143995,-894.41,0.00019726,2]
[337390568,1725637144023,-500.0,0.00019726,2]
[337390569,1725637144050,-500.0,0.00019726,2]
[337390570,1725637144079,-911.93,0.00019726,2]
[337390571,1725637144105,-668.19,0.00019726,2]
[337390572,1725637144133,-979.54,0.00019726,2]
[337390573,1725637144171,-500.0,0.00019726,2]
[337390574,1725637144198,-500.0,0.00019726,2]
[337390575,1725637144225,-500.0,0.00019726,2]
[337390576,1725637144251,-956.18,0.00019726,2]
[337390577,1725637144276,-500.0,0.00019726,2]
[337390578,1725637144301,-500.0,0.00019726,2]
[337390579,1725637144325,-500.0,0.00019726,2]
[337390580,1725637144352,-20123.32,0.00019726,2]
[337390581,1725637144377,-531.03,0.00019726,2]
[337390582,1725637144406,-1029.44,0.00019726,2]
[337390583,1725637144434,-500.0,0.00019726,2]
[337390584,1725637144462,-873.02,0.00019726,2]
[337390585,1725637144488,-500.0,0.00019726,2]
[337390586,1725637144514,-1677.69,0.00019726,2]
[337390587,1725637144540,-49982.75,0.00019726,2]
[337390588,1725637144565,-1686.36,0.00019726,2]
[337390589,1725637144590,-500.0,0.00019726,2]
[337390590,1725637144614,-551.1,0.00019726,2]
[337390591,1725637144645,-1794.93,0.00019726,2]
[337390592,1725637144670,-1225.23,0.00019726,2]
[337390593,1725637144694,-1114.86,0.00019726,2]
[337390594,1725637144719,-500.0,0.00019726,2]
[337390595,1725637144747,-500.0,0.00019726,2]
[337390596,1725637144772,-500.0,0.00019726,2]
[337390597,1725637144796,-500.0,0.00019726,2]
[337390598,1725637144822,-1436.9,0.00019726,2]
[337390599,1725637144849,-1006.68,0.00019726,2]
[337390600,1725637144878,-2270.59,0.00019726,2]
[337390601,1725637144906,-1333.99,0.00019726,2]
[337390602,1725637144931,-997.25,0.00019726,2]
[337390603,1725637144959,-500.0,0.00019726,2]
[337390604,1725637144984,-1406.88,0.00019726,2]
[337390605,1725637145010,-500.0,0.00019726,2]
[337390606,1725637145038,-605.1,0.00019726,2]
[337390607,1725637145063,-500.0,0.00019726,2]
[337390608,1725637145086,-500.0,0.00019726,2]
[337390609,1725637145115,-1033.11,0.00019726,2]
[337390610,1725637145146,-2150.27,0.00019726,2]
[337390611,1725637145171,-525.23,0.00019726,2]
[337390612,1725637145200,-1945.45,0.00019726,2]
[337390613,1725637145227,-1874.8,0.00019726,2]
[337390614,1725637145252,-500.0,0.00019726,2]
[337390615,1725637145276,-3184.66,0.00019726,2]
[337390616,1725637145300,-1694.67,0.00019726,2]